[Event "Late-Titled-Tuesday-Blitz-January-30-2024"]
[Site "Chess.com"]
[Date "2024.01.30"]
[Round "9"]
[White "ChEsper99"]
[Black "Boninknights"]
[Result "1/2-1/2"]
[WhiteElo "2176"]
[BlackElo "2402"]
[TimeControl "180+1"]
[EndTime "15:44:31 PST"]
[Termination "Game drawn by repetition"]

1. e4 {[%clk 0:02:59.1]} 1... e5 {[%clk 0:02:57.4]} 2. Nf3 {[%clk 0:02:57.6]}
2... Qe7 {[%clk 0:02:57]} 3. Nc3 {[%clk 0:02:56.8]} 3... c6 {[%clk 0:02:56.5]}
4. d4 {[%clk 0:02:55.2]} 4... d6 {[%clk 0:02:55.7]} 5. Be2 {[%clk 0:02:45.3]}
5... g6 {[%clk 0:02:52]} 6. O-O {[%clk 0:02:44.5]} 6... Bg7 {[%clk 0:02:50.8]}
7. b3 {[%clk 0:02:40.5]} 7... b5 {[%clk 0:02:39.4]} 8. dxe5 {[%clk 0:02:38.6]}
8... dxe5 {[%clk 0:02:37.7]} 9. a4 {[%clk 0:02:34.8]} 9... b4 {[%clk 0:02:36.7]}
10. Nb1 {[%clk 0:02:33.5]} 10... Nf6 {[%clk 0:02:32.8]} 11. Bd3 {[%clk
0:02:21.4]} 11... O-O {[%clk 0:02:27.3]} 12. Nbd2 {[%clk 0:02:19.3]} 12... Nbd7
{[%clk 0:02:21.8]} 13. Qe2 {[%clk 0:02:15.6]} 13... Nc5 {[%clk 0:02:19.7]} 14.
Nc4 {[%clk 0:02:16.1]} 14... Bg4 {[%clk 0:02:04.1]} 15. h3 {[%clk 0:02:12.3]}
15... Bxf3 {[%clk 0:02:01.9]} 16. Qxf3 {[%clk 0:02:13.2]} 16... Rfd8 {[%clk
0:01:57.6]} 17. Rd1 {[%clk 0:02:03.5]} 17... Nfxe4 {[%clk 0:01:49.9]} 18. Bb2
{[%clk 0:01:46.6]} 18... Nc3 {[%clk 0:01:43.6]} 19. Bxc3 {[%clk 0:01:43.9]}
19... bxc3 {[%clk 0:01:32.4]} 20. Be4 {[%clk 0:01:04.5]} 20... Nxe4 {[%clk
0:01:19.7]} 21. Qxe4 {[%clk 0:01:05.4]} 21... Qe6 {[%clk 0:01:15.8]} 22. Na5
{[%clk 0:00:58.7]} 22... Rd5 {[%clk 0:01:14.3]} 23. Nxc6 {[%clk 0:00:53.9]}
23... Rxd1+ {[%clk 0:01:06.9]} 24. Rxd1 {[%clk 0:00:52.4]} 24... Re8 {[%clk
0:01:03]} 25. Rd8 {[%clk 0:00:46.3]} 25... Rxd8 {[%clk 0:00:57.2]} 26. Nxd8
{[%clk 0:00:47.2]} 26... Qd7 {[%clk 0:00:49.6]} 27. Nc6 {[%clk 0:00:39.5]} 27...
f5 {[%clk 0:00:44]} 28. Qc4+ {[%clk 0:00:38.9]} 28... Kf8 {[%clk 0:00:38.6]} 29.
Qxc3 {[%clk 0:00:39.3]} 29... e4 {[%clk 0:00:38]} 30. Qc5+ {[%clk 0:00:39.7]}
30... Ke8 {[%clk 0:00:36.4]} 31. Nxa7 {[%clk 0:00:34.1]} 31... Qd1+ {[%clk
0:00:33.5]} 32. Kh2 {[%clk 0:00:34]} 32... Bd4 {[%clk 0:00:32.9]} 33. Qc8+
{[%clk 0:00:31.5]} 33... Kf7 {[%clk 0:00:31.8]} 34. Qd7+ {[%clk 0:00:28.8]}
34... Kf6 {[%clk 0:00:30]} 35. Qd6+ {[%clk 0:00:26.2]} 35... Kg5 {[%clk
0:00:27.5]} 36. c3 {[%clk 0:00:20.1]} 36... e3 {[%clk 0:00:17.9]} 37. cxd4
{[%clk 0:00:11.3]} 37... e2 {[%clk 0:00:14.6]} 38. Qg3+ {[%clk 0:00:09.9]} 38...
Kh6 {[%clk 0:00:14]} 39. Qh4+ {[%clk 0:00:09.4]} 39... Kg7 {[%clk 0:00:13.9]}
40. Qe7+ {[%clk 0:00:09.7]} 40... Kh6 {[%clk 0:00:13.8]} 41. Qh4+ {[%clk
0:00:09.9]} 41... Kg7 {[%clk 0:00:13.8]} 42. Qe7+ {[%clk 0:00:10]} 42... Kh6
{[%clk 0:00:13.8]} 43. Qh4+ {[%clk 0:00:10.4]} 1/2-1/2

[Event "Late-Titled-Tuesday-Blitz-January-30-2024"]
[Site "Chess.com"]
[Date "2024.01.30"]
[Round "9"]
[White "SuanFernandes"]
[Black "jaskol95"]
[Result "0-1"]
[WhiteElo "2340"]
[BlackElo "2525"]
[TimeControl "180+1"]
[EndTime "15:44:34 PST"]
[Termination "jaskol95 won by resignation"]

1. d4 {[%clk 0:02:59.2]} 1... d5 {[%clk 0:03:00.3]} 2. c4 {[%clk 0:02:59.9]}
2... e5 {[%clk 0:03:00.9]} 3. dxe5 {[%clk 0:02:58.9]} 3... d4 {[%clk 0:03:01.4]}
4. Nf3 {[%clk 0:02:58]} 4... Nc6 {[%clk 0:03:01.8]} 5. a3 {[%clk 0:02:58.7]}
5... a5 {[%clk 0:03:02.3]} 6. b3 {[%clk 0:02:57.9]} 6... f6 {[%clk 0:03:01.5]}
7. exf6 {[%clk 0:02:55.8]} 7... Nxf6 {[%clk 0:02:55]} 8. Bb2 {[%clk 0:02:56.4]}
8... Bc5 {[%clk 0:02:55.2]} 9. g3 {[%clk 0:02:53.8]} 9... O-O {[%clk 0:02:53.6]}
10. Bg2 {[%clk 0:02:54.2]} 10... Bf5 {[%clk 0:02:44.1]} 11. O-O {[%clk
0:02:54.1]} 11... Qd7 {[%clk 0:02:43.3]} 12. b4 {[%clk 0:02:11.5]} 12... axb4
{[%clk 0:02:31.4]} 13. axb4 {[%clk 0:02:12.4]} 13... Rxa1 {[%clk 0:02:22]} 14.
Bxa1 {[%clk 0:02:12.5]} 14... Nxb4 {[%clk 0:02:20.1]} 15. Nxd4 {[%clk
0:02:06.1]} 15... Bh3 {[%clk 0:02:06.2]} 16. Nb3 {[%clk 0:01:59.8]} 16... Bxf2+
{[%clk 0:01:25.6]} 17. Kxf2 {[%clk 0:01:34.2]} 17... Ng4+ {[%clk 0:01:24.5]} 18.
Kg1 {[%clk 0:01:34.4]} 18... Qxd1 {[%clk 0:01:20.3]} 19. Rxd1 {[%clk 0:01:33.2]}
19... Bxg2 {[%clk 0:01:20.3]} 20. Kxg2 {[%clk 0:01:33.6]} 20... Ne3+ {[%clk
0:01:20.2]} 21. Kg1 {[%clk 0:01:28.6]} 21... Nxd1 {[%clk 0:01:20.3]} 22. N1d2
{[%clk 0:01:26]} 22... Ne3 {[%clk 0:01:14.7]} 23. Bd4 {[%clk 0:01:10]} 23...
Nbc2 {[%clk 0:01:15]} 24. Bc5 {[%clk 0:01:09.7]} 24... Rf7 {[%clk 0:00:59.1]}
25. h3 {[%clk 0:01:06.7]} 25... b6 {[%clk 0:00:58.1]} 26. Bxe3 {[%clk
0:01:03.8]} 26... Nxe3 {[%clk 0:00:57.7]} 27. Nd4 {[%clk 0:01:03.4]} 27... Rd7
{[%clk 0:00:55.1]} 28. N4f3 {[%clk 0:00:59.9]} 28... Nf5 {[%clk 0:00:46.9]} 29.
Kf2 {[%clk 0:00:59.5]} 29... Nd4 {[%clk 0:00:47]} 30. Ng5 {[%clk 0:00:47.9]}
30... h6 {[%clk 0:00:30.1]} 31. Nge4 {[%clk 0:00:48.3]} 31... Ne6 {[%clk
0:00:27.8]} 32. Ke3 {[%clk 0:00:44.5]} 32... Rd8 {[%clk 0:00:19]} 33. Nf3 {[%clk
0:00:41.5]} 33... Nc5 {[%clk 0:00:18.6]} 34. Nxc5 {[%clk 0:00:41]} 34... bxc5
{[%clk 0:00:19.2]} 35. Nd2 {[%clk 0:00:40.1]} 35... Rd4 {[%clk 0:00:19.1]} 36.
Nb3 {[%clk 0:00:30.6]} 36... Rxc4 {[%clk 0:00:19.3]} 37. Kd3 {[%clk 0:00:30.9]}
37... Ra4 {[%clk 0:00:14.8]} 38. Nxc5 {[%clk 0:00:29]} 38... Ra3+ {[%clk
0:00:15]} 39. Ke4 {[%clk 0:00:28.1]} 39... Rxg3 {[%clk 0:00:15.9]} 40. Ne6
{[%clk 0:00:23.8]} 40... Rxh3 {[%clk 0:00:10.5]} 41. Nxc7 {[%clk 0:00:23]} 41...
Kf7 {[%clk 0:00:11]} 42. Nb5 {[%clk 0:00:21.2]} 42... Rb3 {[%clk 0:00:10.5]} 43.
Nd6+ {[%clk 0:00:21.4]} 43... Ke6 {[%clk 0:00:10.5]} 44. Ne8 {[%clk 0:00:20.6]}
44... Rb7 {[%clk 0:00:09.8]} 45. Kf4 {[%clk 0:00:18]} 45... Re7 {[%clk 0:00:08]}
0-1

[Event "Late-Titled-Tuesday-Blitz-January-30-2024"]
[Site "Chess.com"]
[Date "2024.01.30"]
[Round "9"]
[White "Msb2"]
[Black "platy3"]
[Result "0-1"]
[WhiteElo "2984"]
[BlackElo "2880"]
[TimeControl "180+1"]
[EndTime "15:44:39 PST"]
[Termination "platy3 won by checkmate"]

1. d4 {[%clk 0:03:00.9]} 1... Nf6 {[%clk 0:02:59.9]} 2. c4 {[%clk 0:03:01.3]}
2... e6 {[%clk 0:03:00.4]} 3. Nc3 {[%clk 0:03:02]} 3... Bb4 {[%clk 0:02:59.4]}
4. e3 {[%clk 0:03:02.6]} 4... O-O {[%clk 0:02:59.4]} 5. Bd2 {[%clk 0:03:03.3]}
5... b6 {[%clk 0:02:54.9]} 6. Nf3 {[%clk 0:03:03.5]} 6... Bb7 {[%clk 0:02:54.5]}
7. Bd3 {[%clk 0:03:04]} 7... d6 {[%clk 0:02:54.6]} 8. O-O {[%clk 0:03:03.7]}
8... Nbd7 {[%clk 0:02:54.8]} 9. a3 {[%clk 0:03:04.2]} 9... Bxc3 {[%clk
0:02:54.9]} 10. Bxc3 {[%clk 0:03:05.1]} 10... a5 {[%clk 0:02:52.5]} 11. b3
{[%clk 0:03:02.3]} 11... Qe7 {[%clk 0:02:51.5]} 12. Kh1 {[%clk 0:03:02.3]} 12...
e5 {[%clk 0:02:51.3]} 13. Bc2 {[%clk 0:03:02]} 13... Ne4 {[%clk 0:02:43]} 14.
Bb2 {[%clk 0:03:00.9]} 14... f5 {[%clk 0:02:43.2]} 15. d5 {[%clk 0:02:47.2]}
15... Ng5 {[%clk 0:02:41.9]} 16. Nxg5 {[%clk 0:02:45.7]} 16... Qxg5 {[%clk
0:02:42.8]} 17. f4 {[%clk 0:02:46.5]} 17... exf4 {[%clk 0:02:34.8]} 18. exf4
{[%clk 0:02:47.4]} 18... Qh6 {[%clk 0:02:31.5]} 19. Rf3 {[%clk 0:02:42.4]} 19...
Rae8 {[%clk 0:02:21.2]} 20. Qd2 {[%clk 0:02:13.3]} 20... Nf6 {[%clk 0:02:13.2]}
21. Bxf5 {[%clk 0:02:11.6]} 21... Ne4 {[%clk 0:02:12.9]} 22. Bxe4 {[%clk
0:02:10.3]} 22... Rxe4 {[%clk 0:02:13.8]} 23. Raf1 {[%clk 0:01:57.2]} 23... Bc8
{[%clk 0:02:13.6]} 24. h3 {[%clk 0:01:41.3]} 24... Bf5 {[%clk 0:02:05.7]} 25. a4
{[%clk 0:01:39.9]} 25... Rfe8 {[%clk 0:02:03]} 26. Rg3 {[%clk 0:01:39.5]} 26...
R8e7 {[%clk 0:01:59.5]} 27. Qc3 {[%clk 0:01:38.3]} 27... Re2 {[%clk 0:01:56.1]}
28. Qd4 {[%clk 0:01:30.9]} 28... R2e4 {[%clk 0:01:41.7]} 29. Qc3 {[%clk
0:01:28]} 29... Re2 {[%clk 0:01:41.1]} 30. Kh2 {[%clk 0:01:23]} 30... Kf8 {[%clk
0:01:36.3]} 31. Rff3 {[%clk 0:01:12.9]} 31... R2e4 {[%clk 0:01:03]} 32. Rg5
{[%clk 0:01:07.4]} 32... Rf7 {[%clk 0:00:50.9]} 33. Rfg3 {[%clk 0:00:46.8]}
33... g6 {[%clk 0:00:51.2]} 34. Qh8+ {[%clk 0:00:30.8]} 34... Ke7 {[%clk
0:00:51.5]} 35. Qb8 {[%clk 0:00:31.5]} 35... Kd7 {[%clk 0:00:50.4]} 36. Qh8
{[%clk 0:00:22.2]} 36... Qh4 {[%clk 0:00:43]} 37. Bf6 {[%clk 0:00:21.5]} 37...
Re8 {[%clk 0:00:42.8]} 38. Rxf5 {[%clk 0:00:12.6]} 38... Qxg3+ {[%clk
0:00:42.6]} 39. Kxg3 {[%clk 0:00:12.4]} 39... Rxh8 {[%clk 0:00:43.5]} 40. Bxh8
{[%clk 0:00:12.1]} 40... Rxf5 {[%clk 0:00:42]} 41. Kg4 {[%clk 0:00:11.7]} 41...
Rf8 {[%clk 0:00:40.8]} 42. Bd4 {[%clk 0:00:11.9]} 42... Re8 {[%clk 0:00:41.3]}
43. Kf3 {[%clk 0:00:12.4]} 43... Re1 {[%clk 0:00:41.1]} 44. g4 {[%clk 0:00:13]}
44... Rb1 {[%clk 0:00:41.1]} 45. f5 {[%clk 0:00:12.3]} 45... g5 {[%clk 0:00:39]}
46. Be3 {[%clk 0:00:07.9]} 46... Rxb3 {[%clk 0:00:38]} 47. Ke4 {[%clk
0:00:08.8]} 47... h6 {[%clk 0:00:38.4]} 48. f6 {[%clk 0:00:06.9]} 48... Ke8
{[%clk 0:00:38.5]} 49. h4 {[%clk 0:00:05.2]} 49... gxh4 {[%clk 0:00:37.6]} 50.
Bxh6 {[%clk 0:00:06.1]} 50... h3 {[%clk 0:00:37.1]} 51. Bf4 {[%clk 0:00:06.5]}
51... Kf7 {[%clk 0:00:35.9]} 52. Kf5 {[%clk 0:00:06.9]} 52... Rf3 {[%clk
0:00:36]} 53. g5 {[%clk 0:00:06.7]} 53... Rxf4+ {[%clk 0:00:34.3]} 54. Kxf4
{[%clk 0:00:07]} 54... h2 {[%clk 0:00:34.9]} 55. Kf5 {[%clk 0:00:07.9]} 55...
h1=Q {[%clk 0:00:35]} 56. g6+ {[%clk 0:00:08.8]} 56... Kf8 {[%clk 0:00:35]} 57.
Ke6 {[%clk 0:00:09.7]} 57... Qh3# {[%clk 0:00:34.3]} 0-1

[Event "Late-Titled-Tuesday-Blitz-January-30-2024"]
[Site "Chess.com"]
[Date "2024.01.30"]
[Round "9"]
[White "DenLaz"]
[Black "Zhigalko_Sergei"]
[Result "1-0"]
[WhiteElo "3053"]
[BlackElo "2944"]
[TimeControl "180+1"]
[EndTime "15:44:41 PST"]
[Termination "DenLaz won on time"]

1. d4 {[%clk 0:02:56.8]} 1... Nf6 {[%clk 0:02:59.9]} 2. c4 {[%clk 0:02:57.5]}
2... e6 {[%clk 0:03:00.1]} 3. Nf3 {[%clk 0:02:57.9]} 3... b6 {[%clk 0:03:00.2]}
4. g3 {[%clk 0:02:58.5]} 4... Ba6 {[%clk 0:03:00.5]} 5. b3 {[%clk 0:02:58.7]}
5... Bb4+ {[%clk 0:03:00.8]} 6. Bd2 {[%clk 0:02:59.4]} 6... Be7 {[%clk
0:03:01.3]} 7. Bg2 {[%clk 0:03:00.1]} 7... c6 {[%clk 0:03:01.4]} 8. O-O {[%clk
0:02:59.8]} 8... d5 {[%clk 0:03:01.8]} 9. Qc2 {[%clk 0:02:57.8]} 9... Nbd7
{[%clk 0:02:57.9]} 10. a4 {[%clk 0:02:56.7]} 10... O-O {[%clk 0:02:56.2]} 11.
Rc1 {[%clk 0:02:56.3]} 11... Ne4 {[%clk 0:02:52.4]} 12. Be1 {[%clk 0:02:52.7]}
12... Rc8 {[%clk 0:02:28.2]} 13. a5 {[%clk 0:02:48.9]} 13... b5 {[%clk
0:02:27.9]} 14. c5 {[%clk 0:02:48.9]} 14... f5 {[%clk 0:02:21.5]} 15. Nc3 {[%clk
0:02:48.2]} 15... Nxc3 {[%clk 0:02:03.6]} 16. Bxc3 {[%clk 0:02:46.8]} 16... Bf6
{[%clk 0:01:54.3]} 17. b4 {[%clk 0:02:37.4]} 17... Qe7 {[%clk 0:01:45.8]} 18.
Ne5 {[%clk 0:02:36.2]} 18... Nxe5 {[%clk 0:01:30]} 19. dxe5 {[%clk 0:02:35.5]}
19... Bg5 {[%clk 0:01:30.7]} 20. e3 {[%clk 0:02:36.2]} 20... h5 {[%clk
0:01:24.4]} 21. Bd4 {[%clk 0:02:28.5]} 21... Rc7 {[%clk 0:01:19.8]} 22. f4
{[%clk 0:02:23.8]} 22... Bh6 {[%clk 0:01:19.2]} 23. Bf3 {[%clk 0:02:24.3]} 23...
g6 {[%clk 0:01:14.3]} 24. Kf2 {[%clk 0:02:24.1]} 24... Qe8 {[%clk 0:01:04.8]}
25. Qe2 {[%clk 0:02:16.7]} 25... Rh7 {[%clk 0:00:57.9]} 26. Ke1 {[%clk
0:02:15.8]} 26... Bc8 {[%clk 0:00:56.4]} 27. Kd2 {[%clk 0:02:15.2]} 27... Bd7
{[%clk 0:00:52.8]} 28. h3 {[%clk 0:02:15.3]} 28... Qe7 {[%clk 0:00:36.7]} 29.
Rg1 {[%clk 0:02:11]} 29... Kh8 {[%clk 0:00:21.5]} 30. g4 {[%clk 0:02:01.8]}
30... hxg4 {[%clk 0:00:13.1]} 31. hxg4 {[%clk 0:02:02.7]} 31... g5 {[%clk
0:00:12.1]} 32. gxf5 {[%clk 0:01:55.1]} 32... Rxf5 {[%clk 0:00:13]} 33. Bg4
{[%clk 0:01:54.8]} 33... Rf8 {[%clk 0:00:12.9]} 34. fxg5 {[%clk 0:00:49.8]}
34... Bxg5 {[%clk 0:00:13.8]} 35. Raf1 {[%clk 0:00:49.9]} 35... Rg8 {[%clk
0:00:10.7]} 36. Rh1 {[%clk 0:00:48.4]} 36... Rg7 {[%clk 0:00:08.7]} 37. Qf3
{[%clk 0:00:42.9]} 37... Rxh1 {[%clk 0:00:04.8]} 38. Rxh1+ {[%clk 0:00:40.6]}
38... Rh7 {[%clk 0:00:05.7]} 39. Rf1 {[%clk 0:00:22]} 39... Kg7 {[%clk
0:00:05.6]} 40. Qg2 {[%clk 0:00:21]} 40... Be8 {[%clk 0:00:04.6]} 41. Rf6 {[%clk
0:00:19.3]} 41... Bf7 {[%clk 0:00:01.2]} 42. Bf5 {[%clk 0:00:16.7]} 42... exf5
{[%clk 0:00:01.2]} 43. Qxg5+ {[%clk 0:00:16.8]} 43... Kf8 {[%clk 0:00:01.4]} 44.
e6 {[%clk 0:00:17.1]} 1-0

[Event "Late-Titled-Tuesday-Blitz-January-30-2024"]
[Site "Chess.com"]
[Date "2024.01.30"]
[Round "9"]
[White "MikaelyanArman"]
[Black "Mikhail_Golubev"]
[Result "1-0"]
[WhiteElo "2849"]
[BlackElo "2655"]
[TimeControl "180+1"]
[EndTime "15:44:45 PST"]
[Termination "MikaelyanArman won on time"]

1. d4 {[%clk 0:03:00.9]} 1... Nf6 {[%clk 0:02:59.4]} 2. Bf4 {[%clk 0:03:01.3]}
2... d6 {[%clk 0:02:58.8]} 3. e3 {[%clk 0:03:00.7]} 3... Nbd7 {[%clk 0:02:58.4]}
4. Nf3 {[%clk 0:03:00.5]} 4... Nh5 {[%clk 0:02:58.5]} 5. Bg5 {[%clk 0:02:59.5]}
5... h6 {[%clk 0:02:58.5]} 6. Bh4 {[%clk 0:03:00]} 6... g5 {[%clk 0:02:57.2]} 7.
Bg3 {[%clk 0:03:00.3]} 7... Bg7 {[%clk 0:02:54.2]} 8. Nbd2 {[%clk 0:02:58.6]}
8... e5 {[%clk 0:02:35.1]} 9. c3 {[%clk 0:02:57]} 9... f5 {[%clk 0:02:18.3]} 10.
Bc4 {[%clk 0:02:24.4]} 10... Nxg3 {[%clk 0:01:50.3]} 11. hxg3 {[%clk 0:02:25.3]}
11... e4 {[%clk 0:01:49.1]} 12. Ne5 {[%clk 0:01:57.5]} 12... Nxe5 {[%clk
0:01:42.7]} 13. Qh5+ {[%clk 0:01:52.8]} 13... Kf8 {[%clk 0:01:40.8]} 14. dxe5
{[%clk 0:01:52.6]} 14... d5 {[%clk 0:01:41]} 15. Bb3 {[%clk 0:01:36.7]} 15...
Bxe5 {[%clk 0:01:39.4]} 16. O-O-O {[%clk 0:01:32.1]} 16... Be6 {[%clk
0:01:36.1]} 17. f4 {[%clk 0:01:21.6]} 17... Bf6 {[%clk 0:01:18]} 18. g4 {[%clk
0:01:11.8]} 18... gxf4 {[%clk 0:01:11.7]} 19. exf4 {[%clk 0:01:07]} 19... Qe7
{[%clk 0:01:03.6]} 20. gxf5 {[%clk 0:00:59.7]} 20... Bf7 {[%clk 0:01:03.6]} 21.
Qe2 {[%clk 0:00:58.9]} 21... a5 {[%clk 0:01:01.5]} 22. a4 {[%clk 0:00:51.7]}
22... Ra6 {[%clk 0:00:48.6]} 23. g4 {[%clk 0:00:51.2]} 23... c5 {[%clk
0:00:40.7]} 24. Kb1 {[%clk 0:00:46]} 24... c4 {[%clk 0:00:37.5]} 25. Nxc4 {[%clk
0:00:34.9]} 25... dxc4 {[%clk 0:00:34.6]} 26. Bxc4 {[%clk 0:00:35.8]} 26... Bxc4
{[%clk 0:00:33.8]} 27. Qxc4 {[%clk 0:00:36.7]} 27... Rc6 {[%clk 0:00:25.1]} 28.
Qd5 {[%clk 0:00:27]} 28... Kg7 {[%clk 0:00:25.2]} 29. g5 {[%clk 0:00:26.2]}
29... hxg5 {[%clk 0:00:24.6]} 30. Rxh8 {[%clk 0:00:26.2]} 30... Kxh8 {[%clk
0:00:23.8]} 31. fxg5 {[%clk 0:00:26.8]} 31... Bxg5 {[%clk 0:00:23.7]} 32. Rh1+
{[%clk 0:00:15.3]} 32... Kg7 {[%clk 0:00:23.1]} 33. Rg1 {[%clk 0:00:16]} 33...
Rh6 {[%clk 0:00:18.9]} 34. f6+ {[%clk 0:00:14.5]} 34... Qxf6 {[%clk 0:00:07.4]}
35. Rxg5+ {[%clk 0:00:14.7]} 35... Rg6 {[%clk 0:00:07.9]} 36. Rf5 {[%clk
0:00:15.3]} 36... Qe7 {[%clk 0:00:06.4]} 37. Re5 {[%clk 0:00:14.4]} 37... Qf7
{[%clk 0:00:05.5]} 38. Qxf7+ {[%clk 0:00:10.6]} 38... Kxf7 {[%clk 0:00:05.2]}
39. Rxe4 {[%clk 0:00:11.5]} 39... Rg5 {[%clk 0:00:03.8]} 40. Ka2 {[%clk
0:00:11.2]} 40... Kf6 {[%clk 0:00:03.8]} 41. Kb3 {[%clk 0:00:11.6]} 41... Rg2
{[%clk 0:00:03.5]} 42. Re8 {[%clk 0:00:09.6]} 42... Rh2 {[%clk 0:00:02.5]} 43.
Rb8 {[%clk 0:00:08.1]} 43... Rh7 {[%clk 0:00:02.4]} 44. Ra8 {[%clk 0:00:06.7]}
44... Rh5 {[%clk 0:00:01.3]} 45. Ra7 {[%clk 0:00:07]} 1-0

[Event "Late-Titled-Tuesday-Blitz-January-30-2024"]
[Site "Chess.com"]
[Date "2024.01.30"]
[Round "9"]
[White "StellarChess"]
[Black "Brahianzevich"]
[Result "0-1"]
[WhiteElo "2540"]
[BlackElo "2431"]
[TimeControl "180+1"]
[EndTime "15:44:50 PST"]
[Termination "Brahianzevich won by resignation"]

1. d4 {[%clk 0:03:00.9]} 1... d5 {[%clk 0:02:56.6]} 2. Nc3 {[%clk 0:02:58.4]}
2... Nf6 {[%clk 0:02:56.4]} 3. Bf4 {[%clk 0:02:58]} 3... e6 {[%clk 0:02:53.2]}
4. e3 {[%clk 0:02:51.1]} 4... Bd6 {[%clk 0:02:49.5]} 5. Nge2 {[%clk 0:02:50.2]}
5... O-O {[%clk 0:02:49.1]} 6. Qd2 {[%clk 0:02:48.7]} 6... c6 {[%clk 0:02:40.9]}
7. h4 {[%clk 0:02:47.5]} 7... Re8 {[%clk 0:02:32.4]} 8. h5 {[%clk 0:02:45.4]}
8... Bxf4 {[%clk 0:02:27.4]} 9. Nxf4 {[%clk 0:02:45.5]} 9... e5 {[%clk 0:02:28]}
10. dxe5 {[%clk 0:02:45.7]} 10... Rxe5 {[%clk 0:02:28.9]} 11. h6 {[%clk
0:02:44.1]} 11... g6 {[%clk 0:02:28.9]} 12. O-O-O {[%clk 0:02:37.6]} 12... Bf5
{[%clk 0:02:18.3]} 13. f3 {[%clk 0:02:34.2]} 13... Qe7 {[%clk 0:02:15.5]} 14. g4
{[%clk 0:02:32.8]} 14... Bc8 {[%clk 0:02:15.2]} 15. e4 {[%clk 0:02:15.1]} 15...
dxe4 {[%clk 0:01:58.4]} 16. g5 {[%clk 0:02:11.3]} 16... e3 {[%clk 0:01:53.7]}
17. Qd4 {[%clk 0:02:00.8]} 17... Ne8 {[%clk 0:01:42.1]} 18. Ne4 {[%clk
0:01:53.2]} 18... Nd7 {[%clk 0:01:29.4]} 19. Bh3 {[%clk 0:01:45.7]} 19... Nb6
{[%clk 0:01:19.6]} 20. Nf6+ {[%clk 0:01:10.8]} 20... Nxf6 {[%clk 0:01:14.2]} 21.
gxf6 {[%clk 0:01:11.7]} 21... Qe8 {[%clk 0:01:14.5]} 22. Qxe5 {[%clk 0:01:07.5]}
22... Bxh3 {[%clk 0:01:07.6]} 23. Qxe8+ {[%clk 0:01:04.7]} 23... Rxe8 {[%clk
0:01:08.5]} 24. Nxh3 {[%clk 0:01:04]} 24... Nd5 {[%clk 0:01:08]} 25. Rhe1 {[%clk
0:01:00.7]} 25... Nxf6 {[%clk 0:01:05.6]} 26. Rd3 {[%clk 0:01:00]} 26... Nd5
{[%clk 0:01:03.4]} 27. a3 {[%clk 0:00:50.9]} 27... b5 {[%clk 0:01:01.1]} 28. Kd1
{[%clk 0:00:42.2]} 28... f5 {[%clk 0:01:00.2]} 29. Rxd5 {[%clk 0:00:41.3]} 29...
cxd5 {[%clk 0:01:00.1]} 30. Ke2 {[%clk 0:00:42]} 30... d4 {[%clk 0:00:50.5]} 31.
Kd3 {[%clk 0:00:41.2]} 31... Rc8 {[%clk 0:00:50.7]} 32. Nf4 {[%clk 0:00:40.3]}
32... Kf7 {[%clk 0:00:49.4]} 33. Ne2 {[%clk 0:00:40.5]} 33... g5 {[%clk
0:00:47.8]} 34. Nxd4 {[%clk 0:00:39.5]} 34... Kg6 {[%clk 0:00:42.3]} 35. Kxe3
{[%clk 0:00:35.8]} 35... f4+ {[%clk 0:00:37.2]} 36. Kd3 {[%clk 0:00:35.6]} 36...
Kxh6 {[%clk 0:00:37]} 37. Re6+ {[%clk 0:00:32.5]} 37... Kh5 {[%clk 0:00:31.5]}
38. Nf5 {[%clk 0:00:31.8]} 38... g4 {[%clk 0:00:32]} 39. Ke4 {[%clk 0:00:30]}
39... Rc4+ {[%clk 0:00:31]} 40. Kd3 {[%clk 0:00:23.7]} 40... g3 {[%clk
0:00:27.7]} 41. Nd4 {[%clk 0:00:16.5]} 41... g2 {[%clk 0:00:20.5]} 42. Re1
{[%clk 0:00:15.9]} 42... Kh4 {[%clk 0:00:20.8]} 43. c3 {[%clk 0:00:15.6]} 43...
Kg3 {[%clk 0:00:20.2]} 44. Ke2 {[%clk 0:00:15.6]} 44... Rc5 {[%clk 0:00:17.8]}
45. Kd2 {[%clk 0:00:12.6]} 45... h5 {[%clk 0:00:15.8]} 46. Ne2+ {[%clk
0:00:13.1]} 46... Kf2 {[%clk 0:00:15.5]} 47. Rb1 {[%clk 0:00:08.4]} 47... Rd5+
{[%clk 0:00:14.8]} 48. Nd4 {[%clk 0:00:08]} 48... h4 {[%clk 0:00:14.2]} 49. Kd3
{[%clk 0:00:08.2]} 49... h3 {[%clk 0:00:14.3]} 50. Ke4 {[%clk 0:00:08.3]} 50...
Rxd4+ {[%clk 0:00:13.4]} 51. cxd4 {[%clk 0:00:09.2]} 51... h2 {[%clk 0:00:14]}
52. d5 {[%clk 0:00:09.7]} 52... g1=Q {[%clk 0:00:14.4]} 53. Rxg1 {[%clk
0:00:08.7]} 53... hxg1=Q {[%clk 0:00:14.3]} 54. d6 {[%clk 0:00:08.8]} 54... Qd1
{[%clk 0:00:14.1]} 0-1